lending/lending_fUSD_20251218
["ID","MTS","AMOUNT","RATE_DAILY","PERIOD"]
[399060866,1766091428760,-1697.42681806,0.00016739,2]
[399060867,1766091428771,-545.37416881,0.00016739,2]
[399060868,1766091428795,-28.80605252,0.00016739,2]
[399060869,1766091430281,-1668.62076554,0.00016739,2]
[399060870,1766091430317,-2242.80098687,0.00016739,2]
[399060871,1766091430371,-2242.80098687,0.00016739,2]
[399060872,1766091430405,-2242.80098687,0.00016739,2]
[399060873,1766091430473,-2242.80098687,0.00016739,2]
[399060874,1766091430508,-2242.80098687,0.00016739,2]
[399060875,1766091430574,-2242.80098687,0.00016739,2]
[399060876,1766091430609,-2242.80098687,0.00016739,2]
[399060877,1766091430668,-2242.80098687,0.00016739,2]
[399060878,1766091430701,-2242.80098687,0.00016739,2]
[399060879,1766091430758,-2242.80098687,0.00016739,2]
[399060880,1766091430798,-2242.80098687,0.00016739,2]
[399060881,1766091430853,-2242.80098687,0.00016739,2]
[399060882,1766091430887,-2242.80098687,0.00016739,2]
[399060883,1766091431265,-1806.78873152,0.00016739,2]
[399060884,1766091431283,-436.01225535,0.00016739,2]
[399060885,1766091431294,-592.79379717,0.00016739,2]
[399060886,1766091431316,-1650.0071897,0.00016739,2]
[399060887,1766091431328,-592.79379717,0.00016739,2]
[399060888,1766091431373,-1650.0071897,0.00016739,2]
[399060889,1766091431384,-592.79379717,0.00016739,2]
[399060890,1766091431401,-1028.80605252,0.00016739,2]
[399060891,1766091432650,-621.20113718,0.00016739,2]
[399060892,1766091432687,-2242.80098687,0.00016739,2]
[399060893,1766091432722,-2029.20476503,0.00016739,2]
[399060894,1766091432795,-213.59622184,0.00016739,2]
[399060896,1766091435586,-2242.80098687,0.00016739,2]
[399060897,1766091435624,-2242.80098687,0.00016739,2]
[399060898,1766091435690,-1028.80605252,0.00016739,2]
[399060900,1766091435793,-1213.99493435,0.00016739,2]
[399060901,1766091435835,-2242.80098687,0.00016739,2]
[399060902,1766091435875,-843.61717069,0.00016739,2]
[399060903,1766091435943,-1399.18381618,0.00016739,2]
[399060904,1766091436000,-2242.80098687,0.00016739,2]
[399060905,1766091436038,-2242.80098687,0.00016739,2]
[399060907,1766091436152,-1028.80605252,0.00016739,2]
[399060908,1766091436215,-1213.99493435,0.00016739,2]
[399060909,1766091436252,-2242.80098687,0.00016739,2]
[399060910,1766091436288,-843.61717069,0.00016739,2]
[399060911,1766091436357,-1399.18381618,0.00016739,2]
[399060919,1766091438775,-2242.80098687,0.00016739,2]
[399060920,1766091438814,-2242.80098687,0.00016739,2]
[399060921,1766091438873,-1028.80605252,0.00016739,2]
[399060924,1766091439042,-1213.99493435,0.00016739,2]
[399060925,1766091439075,-2242.80098687,0.00016739,2]
[399060926,1766091439108,-843.61717069,0.00016739,2]
[399060927,1766091439679,-1399.18381618,0.00016739,2]
[399060928,1766091439724,-2242.80098687,0.00016739,2]
[399060929,1766091439763,-2242.80098687,0.00016739,2]
[399060930,1766091439910,-1028.80605252,0.00016739,2]
[399060931,1766091444205,-1213.99493435,0.00016739,2]
[399060932,1766091444241,-2242.80098687,0.00016739,2]
[399060933,1766091444275,-843.61717069,0.00016739,2]
[399060934,1766091444366,-1399.18381618,0.00016739,2]
[399060935,1766091444527,-2242.80098687,0.00016739,2]
[399060936,1766091444558,-2242.80098687,0.00016739,2]
[399060937,1766091444654,-1028.80605252,0.00016739,2]
[399060939,1766091452147,251.91,0.00013699,2]
[399060940,1766091454463,-500.0,0.00016382,2]
[399060941,1766091454495,-500.0,0.00016382,2]
[399060942,1766091454529,-1213.99493435,0.00016739,2]
[399060943,1766091454562,-2242.80098687,0.00016739,2]
[399060944,1766091454655,-1086.41815756,0.00016739,2]
[399060945,1766091460812,-1156.38282931,0.00016739,2]
[399060946,1766091460845,-2242.80098687,0.00016739,2]
[399060947,1766091460876,-958.84138077,0.00016739,2]
[399060948,1766091460946,-1283.9596061,0.00016739,2]
[399060949,1766091460976,-2242.80098687,0.00016739,2]
[399060950,1766091461006,-703.68782719,0.00016739,2]
[399060951,1766091461145,-580.27177891,0.00016739,2]
[399060952,1766091461180,-958.84138077,0.00016739,2]
[399060953,1766091461214,-2242.80098687,0.00016739,2]
[399060954,1766091461246,-1353.92427785,0.00016739,2]
[399060955,1766091461339,-888.87670902,0.00016739,2]
[399060956,1766091461371,-2242.80098687,0.00016739,2]
[399060957,1766091461402,-1493.85362135,0.00016739,2]
[399060958,1766091461505,-748.94736552,0.00016739,2]
[399060959,1766091461514,-888.87670902,0.00016739,2]
[399060960,1766091461529,-1321.88426373,0.00016739,2]
[399060961,1766091461539,-920.91672314,0.00016739,2]
[399060962,1766091461577,-1289.84424961,0.00016739,2]
[399060963,1766091461608,-2210.76097275,0.00016739,2]
[399060964,1766091461639,-788.03858253,0.00016739,2]
[399060965,1766091461722,-1422.72239022,0.00016739,2]
[399060966,1766091461753,-2210.76097275,0.00016739,2]
[399060967,1766091461783,-522.28230131,0.00016739,2]
[399060968,1766091461864,-900.44008891,0.00016739,2]
[399060969,1766091461879,-788.03858253,0.00016739,2]
[399060970,1766091461889,-1422.72239022,0.00016739,2]
[399060971,1766091461922,-788.03858253,0.00016739,2]
[399060972,1766091461953,-2210.76097275,0.00016739,2]
[399060973,1766091461985,-1791.64991669,0.00016739,2]
[399060974,1766091462047,-419.11105606,0.00016739,2]
[399060975,1766091463391,-2210.76097275,0.00016739,2]
[399060976,1766091463423,-2210.76097275,0.00016739,2]
[399060977,1766091463563,-2210.76097275,0.00016739,2]
[399060978,1766091463593,-2210.76097275,0.00016739,2]
[399060979,1766091463650,-2210.76097275,0.00016739,2]
[399060980,1766091463679,-2210.76097275,0.00016739,2]
[399060981,1766091463758,-2210.76097275,0.00016739,2]
[399060982,1766091463792,-2210.76097275,0.00016739,2]
[399060983,1766091464043,-1260.13735425,0.00016739,2]
[399060984,1766091464070,-950.6236185,0.00016739,2]
[399060985,1766091464080,-1260.13735425,0.00016739,2]
[399060986,1766091464112,-950.6236185,0.00016739,2]
[399060987,1766091464122,-206.3424905,0.00016739,2]
[399060988,1766091468666,-2004.41848225,0.00016739,2]
[399060989,1766091468696,-2210.76097275,0.00016739,2]
[399060990,1766091468730,-500.0,0.00016739,2]
[399060991,1766091468761,-69.65109,0.00016739,2]
[399060992,1766091468835,-430.34891,0.00016739,2]
[399060993,1766091478579,500.0,0.00016382,2]
[399060994,1766091478811,500.0,0.00016382,2]
[399060995,1766091479039,500.0,0.00016382,2]
[399060996,1766091485142,500.0,0.00016739,2]
[399061001,1766091495946,500.0,0.00016382,2]
[399061002,1766091495993,500.0,0.00016382,2]
[399061003,1766091496060,500.0,0.00016382,2]
[399061004,1766091510164,427.24916276,0.00016729,2]
[399061021,1766091574897,228.0,0.000164,2]
[399061022,1766091575023,319.0,0.000164,2]
[399061023,1766091576132,182.0,0.000164,2]
[399061024,1766091577148,183.24724678,0.000164,2]
[399061035,1766091601360,300.0,0.00016738,2]
[399061036,1766091601417,1200.0,0.00016738,2]
[399061037,1766091601613,300.0,0.00016738,2]
[399061043,1766091608516,800.0,0.00016438,2]
[399061044,1766091633253,683.53,0.00016092,2]
[399061045,1766091637480,-151.0,0.00016739,2]
[399061046,1766091638631,-1.92,0.00016739,2]
[399061047,1766091638659,-151.61,0.00016739,2]
[399061048,1766091638686,-150.97,0.00016739,2]
[399061049,1766091638715,-16.72553871,0.00016739,2]
[399061051,1766091651370,170.83,0.0001595,2]
[399061055,1766091661567,300.0,0.00016738,2]
[399061062,1766091711558,200.0,0.00016041,2]
[399061063,1766091721701,-133.91446129,0.00016739,2]
[399061064,1766091721733,-150.86,0.00016739,2]
[399061065,1766091721765,-152.57,0.00016739,2]
[399061066,1766091721800,-150.58,0.00016739,2]
[399061067,1766091721832,-152.92,0.00016739,2]
[399061068,1766091721866,-152.15,0.00016739,2]
[399061069,1766091721898,-152.49,0.00016739,2]
[399061070,1766091721930,-152.22,0.00016739,2]
[399061071,1766091721964,-151.5,0.00016739,2]
[399061072,1766091721995,-151.21,0.00016739,2]
[399061073,1766091722029,-151.94,0.00016739,2]
[399061074,1766091722062,-152.27,0.00016739,2]
[399061075,1766091722096,-151.12,0.00016739,2]
[399061076,1766091722129,-250.0,0.00016739,2]
[399061077,1766091722162,-693.08338462,0.00016739,2]
[399061078,1766091722295,-4202.35430818,0.00016739,2]
[399061079,1766091722326,-599.43898933,0.00016739,2]
[399061080,1766091722443,-396.42340498,0.00016739,2]
[399061081,1766091722475,-291.0,0.00016739,2]
[399061082,1766091722507,-151.0,0.00016739,2]
[399061083,1766091722539,-151.0,0.00016739,2]
[399061084,1766091722570,-299.99,0.00016741,4]
[399061085,1766091722600,-2556.68,0.00016741,2]
[399061086,1766091722746,-0.02,0.00016741,2]
[399061087,1766091723016,-0.04,0.00016741,2]
[399061088,1766091723071,-0.08,0.00016741,2]
[399061089,1766091723735,-0.16,0.00016741,2]
[399061090,1766091723855,-0.32,0.00016741,2]
[399061091,1766091724028,-0.64,0.00016741,2]
[399061092,1766091724110,-8185.94958635,0.00016741,2]
[399061093,1766091724167,-1812.78041365,0.00016741,2]
[399061094,1766091724178,-8187.18958635,0.00016769,2]
[399061095,1766091724194,-9999.93,0.00016769,2]
[399061096,1766091724268,-9999.85,0.00016769,2]
[399061097,1766091724292,-284.73378961,0.00016741,2]
[399061098,1766091724301,-9714.95621039,0.00016769,2]
[399061099,1766091724332,-9999.37,0.00016769,2]
[399061103,1766091734789,-151.12,0.00016739,2]
[399061104,1766091734820,-300.0,0.00016759,2]
[399061105,1766091734898,-9097.77,0.00016769,2]
[399061106,1766091734937,-2099.49575953,0.00016769,2]
[399061107,1766091734963,-5801.01848094,0.00016769,2]
[399061108,1766091740981,-519.23769233,0.000168,2]
[399061109,1766091741011,-198.95049906,0.000168,2]
[399061110,1766091741042,-2538.36525238,0.000168,2]
[399061111,1766091741117,-3486.90311246,0.000168,2]
[399061112,1766091747175,-203.77230882,0.00016827,2]
[399061113,1766091747207,-198.95049904,0.0001685,2]
[399061114,1766091749299,151.9,0.00016769,2]
[399061115,1766091755211,500.0,0.00016382,2]
[399061116,1766091755444,500.0,0.00016382,2]
[399061117,1766091755678,500.0,0.00016382,2]
[399061118,1766091755915,500.0,0.00016436,2]
[399061119,1766091756149,500.0,0.00016498,2]
[399061120,1766091759899,500.0,0.00016382,2]
[399061121,1766091762130,168.15464454,0.000168,2]
[399061122,1766091762491,663.90826287,0.00016739,2]
[399061123,1766091763336,-200.0,0.00016863,2]
[399061124,1766091763365,-200.0,0.00016864,2]
[399061125,1766091763393,-200.0,0.00016864,2]
[399061129,1766091784680,198.95049904,0.000168,2]
[399061146,1766091818983,164.28037655,0.00016798,2]
[399061148,1766091823648,414.2773,0.00016799,2]
[399061149,1766091824985,164.28037655,0.000168,2]
[399061150,1766091839948,3938.22808665,0.000168,2]
[399061170,1766091903682,454.33298078,0.000168,2]
[399061171,1766091905724,1000.0,0.000168,2]
[399061172,1766091913005,150.0,0.00015288,2]
[399061173,1766091913038,150.0,0.00015288,2]
[399061174,1766091913078,150.0,0.00015288,2]
[399061175,1766091918135,150.0,0.00015288,2]
[399061176,1766091918210,150.0,0.00015288,2]
[399061177,1766091918368,150.0,0.00015288,2]
[399061178,1766091919631,150.0,0.00015288,2]
[399061179,1766091922861,653.01,8.163e-05,2]
[399061180,1766091922913,150.0,0.00015288,2]
[399061181,1766091923904,653.01,8.593e-05,2]
[399061182,1766091923942,653.01,9.022e-05,2]
[399061183,1766091923985,653.01,9.452e-05,2]
[399061184,1766091924021,653.01,9.882e-05,2]
[399061185,1766091924066,653.01,0.00010311,2]
[399061186,1766091924209,2500.0,0.000168,2]
[399061187,1766091924282,653.01,0.00010741,2]
[399061188,1766091924499,653.01,0.0001117,2]
[399061189,1766091924695,653.01,0.000116,2]
[399061190,1766091924935,422.92,0.0001203,2]
[399061191,1766091924960,230.09,0.0001203,2]
[399061192,1766091925208,653.01,0.00012459,2]
[399061193,1766091925464,653.01,0.00012889,2]
[399061194,1766091925679,653.01,0.00013319,2]
[399061195,1766091925964,653.01,0.00013748,2]
[399061196,1766091926189,653.01,0.00014178,2]
[399061197,1766091926220,150.00000001,0.00015288,2]
[399061198,1766091926641,150.0,0.00015288,2]
[399061199,1766091926676,653.01,0.00014608,2]
[399061200,1766091926716,653.01,0.00015037,2]
[399061201,1766091926846,653.01,0.00015467,2]
[399061202,1766091927119,653.01,0.00015897,2]
[399061203,1766091927323,653.01,0.00016326,2]
[399061204,1766091932027,150.0,0.00015288,2]
[399061205,1766091932060,150.0,0.00016343,2]
[399061206,1766091932097,150.0,0.00015288,2]
[399061218,1766091965920,803.00899099,0.00016438,2]
[399061219,1766091980651,166.67,0.00016834,2]
[399061220,1766092004547,1520.141009,0.000168,2]
[399061221,1766092004570,10000.01,0.000168,2]
[399061222,1766092004593,10000.01,0.000168,2]
[399061223,1766092004616,10000.01,0.000168,2]
[399061224,1766092004639,1962.450991,0.000168,2]
[399061225,1766092008906,310.1,0.00016344,2]
[399061236,1766092036053,1000.0,0.000168,2]
[399061237,1766092045585,5422.74152841,0.000168,2]
[399061238,1766092053847,2500.0,0.000168,2]
[399061239,1766092055573,1077.26847159,0.00016765,2]
[399061240,1766092055604,10000.01,0.00016765,2]
[399061241,1766092055631,10000.01,0.00016765,2]
[399061242,1766092055659,10000.01,0.00016765,2]
[399061265,1766092232152,-288.0,0.00016438,2]
[399061267,1766092232162,-1715.94,0.00016438,2]
[399061269,1766092232172,-299.28682107,0.00016601,2]
[399061271,1766092232184,-0.71317893,0.00016601,2]
[399061273,1766092232194,-1200.0,0.00016763,2]
[399061275,1766092232205,-416.0,0.00016764,2]
[399061277,1766092232215,-550.0,0.00016764,2]
[399061280,1766092232228,-300.0,0.00016764,2]
[399061282,1766092232238,-300.0,0.00016764,2]
[399061284,1766092232247,-279.0,0.00016764,2]
[399061285,1766092232257,-300.0,0.00016764,2]
[399061286,1766092232267,-89471.55568541,0.00016765,2]
[399061287,1766092232277,-33482.622,0.000168,2]
[399061288,1766092232287,-1000.0,0.000168,2]
[399061289,1766092232296,-397.5413582,0.000168,2]
[399061291,1766092232311,-2500.0,0.000168,2]
[399061293,1766092232320,-300.0,0.0001689,2]
[399061295,1766092232330,-180.97846882,0.0001689,2]
[399061297,1766092232340,-178.919,0.00016893,2]
[399061299,1766092232350,-442.60550858,0.00016893,2]
[399061301,1766092232360,-151.0,0.00016897,2]
[399061303,1766092232369,-2184.047,0.00016898,2]
[399061304,1766092232378,-400.48159053,0.00016899,2]
[399061306,1766092232388,-500.0,0.00016899,2]
[399061309,1766092232399,-180.5606955,0.00016899,2]
[399061311,1766092232408,-500.0,0.00016899,2]
[399061313,1766092232418,-500.0,0.00016899,2]
[399061315,1766092232427,-500.0,0.00016899,2]
[399061317,1766092232439,-500.0,0.00016899,2]
[399061319,1766092232449,-500.0,0.00016899,2]
[399061321,1766092232460,-500.0,0.00016899,2]
[399061323,1766092232470,-500.0,0.00016899,2]
[399061326,1766092232479,-500.0,0.00016899,2]
[399061328,1766092232489,-500.0,0.00016899,2]
[399061331,1766092232499,-500.0,0.00016899,2]
[399061334,1766092232509,-500.0,0.00016899,2]
[399061337,1766092232519,-500.0,0.00016899,2]
[399061340,1766092232529,-500.0,0.00016899,2]
[399061343,1766092232538,-500.0,0.00016899,2]
[399061345,1766092232548,-500.0,0.00016899,2]
[399061347,1766092232558,-500.0,0.00016899,2]
[399061349,1766092232567,-500.0,0.00016899,2]
[399061351,1766092232576,-500.0,0.00016899,2]
[399061353,1766092232585,-500.0,0.00016899,2]
[399061355,1766092232595,-500.0,0.00016899,2]
[399061357,1766092232604,-500.0,0.00016899,2]
[399061359,1766092232614,-500.0,0.00016899,2]
[399061361,1766092232623,-500.0,0.00016899,2]
[399061363,1766092232632,-500.0,0.00016899,2]
[399061365,1766092232642,-500.0,0.00016899,2]
[399061367,1766092232652,-500.0,0.00016899,2]
[399061369,1766092232661,-500.0,0.00016899,2]
[399061371,1766092232671,-500.0,0.00016899,2]
[399061373,1766092232680,-500.0,0.00016899,2]
[399061375,1766092232690,-500.0,0.00016899,2]
[399061377,1766092232699,-500.0,0.00016899,2]
[399061379,1766092232711,-500.0,0.00016899,2]
[399061381,1766092232721,-500.0,0.00016899,2]
[399061383,1766092232731,-431.38835383,0.00016899,2]
[399061386,1766092232744,-68.61164617,0.00016899,2]
[399061388,1766092232755,-500.0,0.00016899,2]
[399061390,1766092232764,-500.0,0.00016899,2]
[399061392,1766092232776,-393.13095249,0.00016899,2]
[399061394,1766092232785,-500.0,0.00016899,2]
[399061396,1766092232795,-500.0,0.00016899,2]
[399061398,1766092232804,-500.0,0.00016899,2]
[399061400,1766092232814,-500.0,0.00016899,2]
[399061402,1766092232823,-500.0,0.00016899,2]
[399061404,1766092232834,-500.0,0.00016899,2]
[399061406,1766092232843,-500.0,0.00016899,2]
[399061408,1766092232853,-500.0,0.00016899,2]
[399061411,1766092232862,-500.0,0.00016899,2]
[399061413,1766092232871,-500.0,0.00016899,2]
[399061415,1766092232881,-189.31309524,0.00016899,2]
[399061417,1766092232890,-500.0,0.00016899,2]
[399061419,1766092232899,-500.0,0.00016899,2]
[399061421,1766092232909,-157.81421215,0.00016899,2]
[399061423,1766092232919,-500.0,0.00016899,2]
[399061425,1766092232929,-500.0,0.00016899,2]
[399061427,1766092232938,-500.0,0.00016899,2]
[399061429,1766092232948,-500.0,0.00016899,2]
[399061431,1766092232958,-500.0,0.00016899,2]
[399061433,1766092232968,-500.0,0.00016899,2]
[399061435,1766092232977,-282.25650796,0.00016899,2]
[399061437,1766092232988,-500.0,0.00016899,2]
[399061439,1766092232999,-500.0,0.00016899,2]
[399061441,1766092233008,-500.0,0.00016899,2]
[399061443,1766092233020,-500.0,0.00016899,2]
[399061445,1766092233031,-500.0,0.00016899,2]
[399061447,1766092233040,-1202.27,0.00016899,2]
[399061449,1766092233050,-645.50218631,0.00016899,2]
[399061451,1766092233061,-500.0,0.00016899,2]
[399061453,1766092233071,-500.0,0.00016899,2]
[399061455,1766092233082,-500.0,0.00016899,2]
[399061457,1766092233092,-500.0,0.00016899,2]
[399061459,1766092233102,-500.0,0.00016899,2]
[399061461,1766092233111,-236.05898136,0.00016899,2]
[399061463,1766092233121,-500.0,0.00016899,2]
[399061465,1766092233131,-500.0,0.00016899,2]
[399061467,1766092233140,-500.0,0.00016899,2]
[399061469,1766092233150,-500.0,0.00016899,2]
[399061472,1766092233160,-500.0,0.00016899,2]
[399061474,1766092233170,-500.0,0.00016899,2]
[399061476,1766092233180,-500.0,0.00016899,2]
[399061478,1766092233189,-500.0,0.00016899,2]
[399061480,1766092233199,-500.0,0.00016899,2]
[399061482,1766092233210,-500.0,0.00016899,2]
[399061484,1766092233220,-500.0,0.00016899,2]
[399061486,1766092233229,-500.0,0.00016899,2]
[399061488,1766092233238,-450.009,0.00016899,2]
[399061490,1766092233248,-500.0,0.00016899,2]
[399061492,1766092233257,-500.0,0.00016899,2]
[399061494,1766092233266,-500.0,0.00016899,2]
[399061496,1766092233275,-500.0,0.00016899,2]
[399061498,1766092233284,-500.0,0.00016899,2]
[399061500,1766092233294,-500.0,0.00016899,2]
[399061502,1766092233303,-500.0,0.00016899,2]
[399061504,1766092233312,-500.0,0.00016899,2]
[399061506,1766092233322,-500.0,0.00016899,2]
[399061508,1766092233331,-500.0,0.00016899,2]
[399061510,1766092233340,-500.0,0.00016899,2]
[399061512,1766092233349,-500.0,0.00016899,2]
[399061514,1766092233359,-500.0,0.00016899,2]
[399061516,1766092233368,-500.0,0.00016899,2]
[399061518,1766092233377,-500.0,0.00016899,2]
[399061520,1766092233387,-500.0,0.00016899,2]
[399061522,1766092233396,-500.0,0.00016899,2]
[399061524,1766092233405,-500.0,0.00016899,2]
[399061526,1766092233415,-500.0,0.00016899,2]
[399061528,1766092233424,-500.0,0.00016899,2]
[399061530,1766092233433,-150.0,0.00016899,2]
[399061532,1766092233442,-198.31426297,0.000169,2]
[399061557,1766092233843,-18090.42302363,0.000169,2]
[399061558,1766092233867,-1490.50948365,0.000169,2]
[399061559,1766092233890,-435.29300942,0.000169,2]
[399061560,1766092233902,-2850.15,0.000169,2]
[399061561,1766092233918,-6538.05098953,0.000169,2]
[399061562,1766092233939,-82982.30087,0.000169,2]
[399061564,1766092238264,-500.0,0.00016899,2]
[399061565,1766092238274,-586.97867611,0.00016899,2]
[399061566,1766092238283,-4539.8213239,0.000169,2]
[399061567,1766092238295,-1754.81785,0.000169,2]
[399061568,1766092238306,-769120.3191869,0.000169,2]
[399061569,1766092238316,-55847.5415444,0.00016955,2]
[399061570,1766092238325,-4395.0,0.0001699,2]
[399061571,1766092238335,-200.0,0.0001699,2]
[399061572,1766092238344,-200.0,0.0001699,2]
[399061573,1766092238353,-500.0,0.0001699,2]
[399061574,1766092238362,-500.0,0.0001699,2]
[399061575,1766092238372,-500.0,0.0001699,2]
[399061576,1766092238382,-151.0,0.0001699,2]
[399061577,1766092238391,-500.0,0.0001699,2]
[399061578,1766092238401,-151.0,0.0001699,2]
[399061579,1766092238410,-500.0,0.0001699,2]
[399061580,1766092238419,-151.0,0.0001699,2]
[399061581,1766092238428,-500.0,0.0001699,2]
[399061582,1766092238438,-151.0,0.0001699,2]
[399061583,1766092238447,-500.0,0.0001699,2]
[399061584,1766092238457,-500.0,0.0001699,2]
[399061585,1766092238466,-151.0,0.0001699,2]
[399061586,1766092238475,-500.0,0.0001699,2]
[399061587,1766092238485,-500.0,0.0001699,2]
[399061588,1766092238494,-151.0,0.0001699,2]
[399061589,1766092238504,-500.0,0.0001699,2]
[399061590,1766092238514,-574.12855637,0.0001699,2]
[399061591,1766092238523,-151.0,0.0001699,2]
[399061592,1766092238532,-151.0,0.0001699,2]
[399061593,1766092238542,-151.0,0.0001699,2]
[399061594,1766092238551,-500.0,0.0001699,2]
[399061595,1766092238560,-151.0,0.0001699,2]
[399061596,1766092238570,-500.0,0.0001699,2]
[399061597,1766092238579,-151.0,0.0001699,2]
[399061598,1766092238588,-500.0,0.0001699,2]
[399061599,1766092238597,-151.0,0.0001699,2]
[399061601,1766092238607,-500.0,0.0001699,2]
[399061603,1766092238616,-500.0,0.0001699,2]
[399061605,1766092238626,-250.0,0.0001699,2]
[399061607,1766092238635,-500.0,0.0001699,2]
[399061609,1766092238644,-500.0,0.0001699,2]
[399061611,1766092238653,-250.0,0.0001699,2]
[399061613,1766092238662,-250.0,0.0001699,2]
[399061615,1766092238671,-500.0,0.0001699,2]
[399061617,1766092238680,-250.0,0.0001699,2]
[399061619,1766092238689,-500.0,0.0001699,2]
[399061621,1766092238698,-250.0,0.0001699,2]
[399061623,1766092238708,-500.0,0.0001699,2]
[399061625,1766092238717,-250.0,0.0001699,2]
[399061627,1766092238727,-250.0,0.0001699,2]
[399061629,1766092238737,-500.0,0.0001699,2]
[399061631,1766092238746,-250.0,0.0001699,2]
[399061633,1766092238755,-250.0,0.0001699,2]
[399061635,1766092238765,-250.0,0.0001699,2]
[399061637,1766092238774,-250.0,0.0001699,2]
[399061639,1766092238783,-250.0,0.0001699,2]
[399061641,1766092238793,-255.55242947,0.0001699,2]
[399061643,1766092238802,-250.0,0.0001699,2]
[399061645,1766092238812,-250.0,0.0001699,2]
[399061647,1766092238821,-151.0,0.0001699,2]
[399061649,1766092238830,-500.0,0.0001699,2]
[399061651,1766092238839,-151.0,0.0001699,2]
[399061652,1766092238848,-500.0,0.0001699,2]
[399061654,1766092238858,-209.40437684,0.0001699,2]
[399061657,1766092238868,-151.0,0.0001699,2]
[399061659,1766092238878,-151.0,0.0001699,2]
[399061661,1766092238887,-500.0,0.0001699,2]
[399061662,1766092238897,-151.0,0.0001699,2]
[399061664,1766092238906,-500.0,0.0001699,2]
[399061667,1766092238916,-151.0,0.0001699,2]
[399061669,1766092238926,-500.0,0.0001699,2]
[399061671,1766092238935,-151.0,0.0001699,2]
[399061673,1766092238945,-500.0,0.0001699,2]
[399061675,1766092238955,-250.0,0.0001699,2]
[399061677,1766092238965,-151.0,0.0001699,2]
[399061679,1766092238976,-250.0,0.0001699,2]
[399061680,1766092238988,-500.0,0.0001699,2]
[399061682,1766092238998,-151.0,0.0001699,2]
[399061685,1766092239009,-250.0,0.0001699,2]
[399061687,1766092239018,-500.0,0.0001699,2]
[399061688,1766092239029,-151.0,0.0001699,2]
[399061690,1766092239039,-250.0,0.0001699,2]
[399061692,1766092239050,-579.4579192,0.0001699,2]
[399061694,1766092239059,-151.0,0.0001699,2]
[399061695,1766092239071,-250.0,0.0001699,2]
[399061719,1766092239441,-151.0,0.0001699,2]
[399061721,1766092239453,-250.0,0.0001699,2]
[399061724,1766092239463,-151.0,0.0001699,2]
[399061726,1766092239473,-250.0,0.0001699,2]
[399061728,1766092239482,-151.0,0.0001699,2]
[399061730,1766092239492,-250.0,0.0001699,2]
[399061732,1766092239501,-151.0,0.0001699,2]
[399061734,1766092239510,-289.41401497,0.0001699,2]
[399061736,1766092239519,-500.0,0.0001699,2]
[399061738,1766092239529,-500.0,0.0001699,2]
[399061740,1766092239539,-200.0,0.0001699,2]
[399061742,1766092239547,-500.0,0.0001699,2]
[399061744,1766092239557,-582.9934841,0.0001699,2]
[399061746,1766092239567,-500.0,0.0001699,2]
[399061748,1766092239576,-582.52208254,0.0001699,2]
[399061750,1766092239586,-3559.99,0.00016997,2]
[399061752,1766092239595,-5428.86,0.00016997,2]
[399061754,1766092239604,-151.0,0.00016997,2]
[399061756,1766092239613,-151.0,0.00016997,2]
[399061758,1766092239622,-158.0457378,0.00016997,2]
[399061760,1766092239631,-500.0,0.00016999,2]